Cogmind - Beta 12 X1 @@@ ROGUE MODE // 2022.08.31 @ 13:18:28 Player: btmk16 Result: Destroyed by P-80 Master with Gamma Rifle Performance ------------- Evolutions (7) 3500 Regions Visited (14) 2800 Robots Destroyed (113) 565 Value Destroyed (4460) 4460 Prototype IDs (18) 360 Alien Tech Used (0) 0 Bonus (1687) 1687 TOTAL SCORE: 13372 Bonus ------- High Alert Combat Kills 387 Entered DSFs 500 Met Data Miner 300 Scanned by Researcher 500 Cogmind --------- Core Integrity 0/1300 Matter 300/300 Energy 100/100 System Corruption 31% Temperature Cool (0) Movement Core (50) Location -3/Testing Parts ------- > --- POWER (3) -------- (None) > --- PROPULSION (7) --- (None) > --- UTILITY (8) ------ Improved Hacking Suite > --- WEAPON (3) ------- (None) > --- INVENTORY (5) ---- Precision Matter Filter Improved Force Booster Improved Hardlight Generator Railgun Peak State ------------ > --- POWER ------------ Heavy Antimatter Reactor Heavy Antimatter Reactor Particle Reactor > --- PROPULSION ------- Flexi-carbon Leg Flexi-carbon Leg Flexi-carbon Leg Flexi-carbon Leg Flexi-carbon Leg Flexi-carbon Leg Myomer Leg > --- UTILITY ---------- Large Storage Unit Experimental Optical Array Long-range Terrain Scanner Nanoactuators Advanced Actuator Array Improved Cloaking Device Improved Hardlight Generator Improved Force Field > --- WEAPON ----------- Hypervelocity Railgun Force Lance Force Lance > --- INVENTORY -------- Flexi-carbon Leg Armored Leg Armored Leg Myomer Leg Advanced Heat Sink Long-range Sensor Array Advanced Particle Charger Advanced ECM Suite Experimental ECM Suite Improved Phase Shifter Advanced Thermal Shield Dispersion Rifle Compact HERF Cannon Railgun Long-range Missile Launcher [Rating: 141] Favorites ----------- Power Heavy Antimatter Reactor Engine Light Angular Momentum Engine Power Core Reinforced Fission Core Reactor Heavy Antimatter Reactor Propulsion Flexi-carbon Leg Treads Light Treads Leg Flexi-carbon Leg Hover Unit Airjet Flight Unit Xenon Bombardment Thruster Utility Advanced Terrain Scan Processor Device Improved Hardlight Generator Storage Large Storage Unit Processor Advanced Terrain Scan Processor Hackware System Shield Protection Makeshift Armor Plating Weapon Coil Gun Energy Gun Dispersion Rifle Ballistic Gun Coil Gun Launcher Missile Launcher Impact Weapon Powered Hammer Slashing Weapon Axe Piercing Weapon Force Lance Build | -11 -10 -9 -8 -7 -7 -7 -7 -6 -6 -5 -5 -4 -3 -3 ------- Run | Scr Mat Mat Mat Fac Low Low Dat Pro Fac Fac DSF Fac Res Tes Slots Evolved 14 | . . 2 2 2 . . . . 2 2 . 2 2 . Power 2 | . . . . . . . . . 1 . . . 1 . Propulsion 5 | . . 2 . 2 . . . . . . . . 1 . Utility 6 | . . . 2 . . . . . 1 1 . 2 . . Weapon 1 | . . . . . . . . . . 1 . . . . Parts Attached 193 | 5 . 2 13 2 6 3 . 8 45 2 . 65 36 6 Power 28 | . . . 1 . 2 1 . . 6 . . 10 7 1 Engine 7 | . . . 1 . 1 . . . 5 . . . . . Core 8 | . . . . . 1 1 . . 1 . . 5 . . Reactor 13 | . . . . . . . . . . . . 5 7 1 Propulsion 71 | 2 . 2 9 1 1 1 . 3 17 . . 19 13 3 Treads 4 | 2 . 2 . . . . . . . . . . . . Leg 38 | . . . 2 . . . . . 12 . . 19 5 . Wheel . | . . . . . . . . . . . . . . . Hover 8 | . . . 4 . . . . 2 2 . . . . . Flight 21 | . . . 3 1 1 1 . 1 3 . . . 8 3 Utility 54 | 1 . . 1 1 1 . . 1 13 . . 24 11 1 Device 31 | 1 . . . 1 1 . . . 4 . . 18 6 . Storage 3 | . . . . . . . . . . . . 2 1 . Processor 8 | . . . . . . . . 1 2 . . 3 2 . Hackware 4 | . . . 1 . . . . . . . . . 2 1 Protection 8 | . . . . . . . . . 7 . . 1 . . Artifact . | . . . . . . . . . . . . . . . Weapon 40 | 2 . . 2 . 2 1 . 4 9 2 . 12 5 1 Energy Gun 6 | 1 . . 1 . . . . . . 1 . 2 . 1 Energy Cannon . | . . . . . . . . . . . . . . . Ballistic Gun 14 | 1 . . . . . . . . 7 . . 4 2 . Ballistic Cannon . | . . . . . . . . . . . . . . . Launcher 9 | . . . 1 . 1 1 . 4 . . . 2 . . Special Weapon . | . . . . . . . . . . . . . . . Impact Weapon 2 | . . . . . . . . . . . . . 2 . Slashing Weapon 1 | . . . . . 1 . . . . . . . . . Piercing Weapon 8 | . . . . . . . . . 2 1 . 4 1 . Special Melee Weapon . | . . . . . . . . . . . . . . . Unidentified Prototypes 8 | . . . . . . . . . 1 . . 4 2 1 Parts Lost 69 | . . . 7 . 2 3 . 8 3 . 1 9 19 17 Power 6 | . . . . . 1 1 . . . . . 1 1 2 Propulsion 36 | . . . 4 . . 2 . 7 1 . 1 2 10 9 Utility 17 | . . . 1 . 1 . . . 1 . . 5 5 4 Weapon 10 | . . . 2 . . . . 1 1 . . 1 3 2 Highest Loss Streak 17 | . . . 4 . 2 3 . 6 2 . 1 4 12 17 To Critical Strikes . | . . . . . . . . . . . . . . . Average Slot Usage (%) 81 | . 71 68 35 44 62 67 61 51 83 93 89 93 89 56 Engine 3 | . . . 1 7 1 5 . . 7 11 11 1 . . Core 1 | . . . . . 5 1 7 5 . . . 3 . . Reactor 3 | . . . . . . . . . . . . 4 12 3 Treads 1 | . 28 35 7 . . . . . . . . . . . Leg 22 | . . . 3 . . . . . 27 35 32 30 27 . Hover 1 | . . . 6 15 15 14 7 3 1 . . . . . Flight 4 | . . . 4 11 21 21 23 17 2 . . . 2 25 Device 14 | . 14 11 3 2 9 15 15 12 7 5 5 24 20 3 Storage 1 | . . . . . . . . . . . . 2 3 2 Processor 7 | . . . . . . . . 3 14 11 11 6 7 2 Protection 3 | . . . . . . . . . 7 11 8 2 . . Energy Gun 1 | . 14 11 2 . . . . . . 2 5 4 . 5 Ballistic Gun 6 | . 14 11 2 . . . . . 11 11 11 8 1 . Piercing Weapon 2 | . . . . . . . . . . 1 . 2 8 . Naked Turns . | . . . . . . . . . . . . . . . Heaviest Build 177 | 3 3 3 3 4 13 10 10 14 48 53 53 177 124 43 Greatest Support 145 | 3 3 3 32 10 14 14 14 18 93 90 90 131 145 43 Greatest Overweight (x) 4 | . . . . . . . . 1 2 . . 1 4 1 Average Overweight (x) . | . . . . . . . . . . . . . . . Largest Inventory Capacity 25 | 5 5 5 5 5 5 5 5 5 5 5 5 25 15 15 Average Capacity 8 | 5 5 5 5 5 5 5 5 5 5 5 5 12 14 10 Most Carried 17 | 3 4 5 5 4 5 5 5 5 5 5 5 17 15 14 Average Carried 7 | 1 3 4 4 3 3 4 5 4 4 4 5 9 12 8 Final Capacity 15 | 5 5 5 5 5 5 5 5 5 5 5 5 15 15 5 Final Carried 15 | 3 4 5 4 4 5 5 5 5 5 5 5 15 10 4 Class Distribution -------------------- 31% | Scavenger-Mutant 19% | Scavenger-Tank 15% | Mutant 12% | Generator-Mutant 10% | Scavenger-Sprinter 6% | Generator-Assassin 3% | Sprinter Dominant Class ---------------- Mutant | -10/Materials Mutant | -9/Materials Mutant | -8/Materials Mutant | -7/Factory Scavenger-Sprinter | -7/Lower Caves Sprinter | -7/Lower Caves Scavenger-Sprinter | -7/Data Miner Scavenger-Sprinter | -6/Proximity Caves Scavenger-Mutant | -6/Factory Scavenger-Tank | -5/Factory Scavenger-Tank | -5/DSF Scavenger-Tank | -4/Factory Generator-Mutant | -3/Research Hacker-Mutant | -3/Testing Resources | -11 -10 -9 -8 -7 -7 -7 -7 -6 -6 -5 -5 -4 -3 -3 ----------- Run | Scr Mat Mat Mat Fac Low Low Dat Pro Fac Fac DSF Fac Res Tes Matter Collected 3412 | 189 41 . . . 86 72 . 80 1329 . 6 1217 374 18 Remotely . | . . . . . . . . . . . . . . . Salvage Created 4923 | 27 41 41 32 . 44 52 . 212 1640 . 105 1618 1111 . Parts 252 | 4 2 3 5 . 2 5 . 13 80 . 2 89 47 . Haulers Intercepted 8 | . 1 1 . . . . . . 2 . 1 1 2 . Recyclers Shooed 4 | . . . . . . . . . 4 . . . . . Parts Field Recycled . | . . . . . . . . . . . . . . . Retrieved Matter . | . . . . . . . . . . . . . . . Parts Self-Destructed 8 | . . . . . . 1 . 7 . . . . . . Prevented . | . . . . . . . . . . . . . . . Kills | -11 -10 -9 -8 -7 -7 -7 -7 -6 -6 -5 -5 -4 -3 -3 ------- Run | Scr Mat Mat Mat Fac Low Low Dat Pro Fac Fac DSF Fac Res Tes Combat Hostiles Destroyed 80 | . . . 4 . 4 4 . 10 20 . . 23 15 . Melee 24 | . . . . . . 1 . 2 2 . . 4 15 . Guns 30 | . . . . . . . . . 18 . . 12 . . AOE 26 | . . . 4 . 4 3 . 8 . . . 7 . . Classes Destroyed 14 | 1 1 . 1 . . . . 2 7 . . 2 . . Worker 9 | . . . . . . . . . 5 . . 3 1 . Builder 7 | . . . . . . . . . 3 . . 4 . . Tunneler 3 | 1 . . . . . . . . . . . 2 . . Hauler 8 | . 1 1 . . . . . . 2 . 1 1 2 . Recycler 2 | . . . . . . . . . 2 . . . . . Mechanic 1 | . . . . . . . . . . . . 1 . . Operator 1 | . . . . . . . . . . . . 1 . . Watcher 2 | . . . . . . . . . 2 . . . . . Swarmer 34 | . . . 4 . 4 4 . 8 6 . . 3 5 . Grunt 25 | . . . . . . . . . 9 . . 14 2 . Brawler 3 | . . . . . . . . 1 1 . . 1 . . Sentry 2 | . . . . . . . . . 1 . . . 1 . Hunter 7 | . . . . . . . . . 1 . . 4 2 . Programmer 9 | . . . . . . . . 1 2 . . 1 5 . Best Kill Streak 7 | 1 1 1 4 . 4 3 . 4 7 . 1 7 5 . Combat Bots Only 5 | . . . 4 . 4 3 . 4 3 . . 5 5 . Max Kills in Single Turn 5 | 1 1 1 4 . 2 3 . 2 2 . 1 5 1 . Gunslinging 1 | . . . . . . . . . 1 . . 1 . . Exploded 4 | . . . 4 . 2 3 . 2 . . . 3 . . Melee 1 | . . . . . . 1 . 1 1 . . 1 1 . Uniques/NPCs Destroyed . | . . . . . . . . . . . . . . . Combat | -11 -10 -9 -8 -7 -7 -7 -7 -6 -6 -5 -5 -4 -3 -3 -------- Run | Scr Mat Mat Mat Fac Low Low Dat Pro Fac Fac DSF Fac Res Tes Damage Taken 11871 | . 137 501 712 14 147 166 . 622 1631 40 436 3230 2736 1499 Core 2779 | . 100 128 238 14 12 46 . 338 266 22 71 221 671 652 Absorbed by Shields 2023 | . . . . . . . . . 147 12 168 1367 329 . Core Remaining (%) 70 | 100 60 68 56 . . . . 41 68 . 90 80 . . Volleys Fired 181 | 1 4 6 1 . 5 1 . 8 81 . 3 67 2 2 Largest 3 | 2 2 2 2 . 1 1 . 1 2 . 3 3 1 1 Hottest 153 | 60 60 60 53 . 36 33 . 33 60 . 141 153 40 40 Shots Fired 398 | 2 8 12 2 . 4 1 . 8 155 . 9 192 2 3 Gun 379 | 2 8 12 1 . . . . . 155 . 9 187 2 3 Cannon . | . . . . . . . . . . . . . . . Launcher 19 | . . . 1 . 4 1 . 8 . . . 5 . . Special . | . . . . . . . . . . . . . . . Kinetic 300 | 1 4 6 1 . . . . . 155 . 6 125 2 . Thermal 79 | 1 4 6 . . . . . . . . 3 62 . 3 Explosive 19 | . . . 1 . 4 1 . 8 . . . 5 . . Electromagnetic . | . . . . . . . . . . . . . . . Robot Hit Streak 11 | 1 5 3 . . 2 3 . 2 11 . 7 9 . 2 Robot Miss Streak 6 | . 1 1 1 . 2 . . 3 4 . 1 6 1 1 Penetration Max 1 | . . . . . . . . . 1 . . 1 . . Secondary Targets 6 | . . . . . . . . . 1 . 1 4 . . Max Gunslinging Chain 1 | . . . . . . . . . 1 . 1 1 . . Shots Hit Robots 341 | 1 7 8 . . 2 4 . 4 103 . 7 129 74 2 Core Hits 210 | 1 2 3 4 . 4 3 . 18 61 . 2 87 25 . Critical Kills 11 | . . . . . . . . . 5 . . 4 2 . Critical Parts Destroyed 4 | . . . . . . . . . 1 . . 1 2 . Critical Strikes 28 | . . . . . . . . . 8 . . 10 10 . Burn 3 | . . . . . . . . . . . . 3 . . Destroy 11 | . . . . . . . . . 6 . . 5 . . Smash 4 | . . . . . . . . . . . . . 4 . Impale 10 | . . . . . . . . . 2 . . 2 6 . Melee Attacks 159 | . . . . . . 5 . 2 16 . . 20 116 . Impact 30 | . . . . . . . . . . . . . 30 . Slashing 7 | . . . . . . 5 . 2 . . . . . . Piercing 122 | . . . . . . . . . 16 . . 20 86 . Sneak Attacks 5 | . . . . . . . . . . . . 1 4 . Combat Hostiles . | . . . . . . . . . . . . . . . Follow-up Attacks 33 | . . . . . . . . . . . . . 33 . Damage Inflicted 13279 | 10 82 99 197 . 283 311 . 1113 2782 12 156 4882 3326 26 Guns 5842 | 10 65 73 . . . . . . 2418 . 156 3094 . 26 Cannons . | . . . . . . . . . . . . . . . Explosions 2961 | . . . 197 . 283 208 . 1018 69 . . 1186 . . Melee 4304 | . . . . . . 103 . 95 272 . . 509 3325 . Ramming 172 | . 17 26 . . . . . . 23 12 . 93 1 . Kinetic 4640 | . 31 29 . . . . . . 2418 . 107 2055 . . Thermal 1202 | 10 34 44 . . . . . . . . 49 1039 . 26 Explosive 2672 | . . . 197 . 283 208 . 1018 69 . . 897 . . Electromagnetic 289 | . . . . . . . . . . . . 289 . . Impact 1042 | . . . . . . . . . . . . . 1042 . Slashing 198 | . . . . . . 103 . 95 . . . . . . Piercing 3064 | . . . . . . . . . 272 . . 509 2283 . Highest Corruption 31 | . 2 . . 2 2 2 2 2 18 . . 4 12 31 Average Corruption 10 | . 2 . . 2 2 2 2 2 15 . . 3 8 18 Corruption Purged . | . . . . . . . . . . . . . . . Corruption Blocked . | . . . . . . . . . . . . . . . Effects 110 | . . . . . 4 1 . 1 64 . . 6 20 14 Message Errors 20 | . . . . . . . . . 13 . . 1 6 . Matter Fused 25 | . . . . . 1 . . 1 14 . . 2 5 2 Heat Flow Errors 11 | . . . . . 1 . . . 6 . . 1 2 1 Energy Discharges 11 | . . . . . . . . . 7 . . . 3 1 Parts Rejected 1 | . . . . . . . . . 1 . . . . . Data Loss (minor) 15 | . . . . . 1 1 . . 7 . . 1 3 2 Data Loss (major) 2 | . . . . . . . . . 2 . . . . . Misfires 4 | . . . . . . . . . 2 . . 1 . 1 Alerts 3 | . . . . . . . . . 2 . . . 1 . Misdirections 12 | . . . . . . . . . 5 . . . . 7 Weapon Failures 6 | . . . . . 1 . . . 5 . . . . . Overload Shots . | . . . . . . . . . . . . . . . Overflow Damage 502 | . . . . . . 36 . 26 34 . . 16 390 . Projectiles . | . . . . . . . . . . . . . . . Explosions 38 | . . . . . . . . 26 . . . 12 . . Melee 464 | . . . . . . 36 . . 34 . . 4 390 . Knockbacks 8 | . . . . . . . . . 1 . . 2 5 . Impact 8 | . . . . . . . . . 1 . . 2 5 . Kinetic . | . . . . . . . . . . . . . . . Secondary . | . . . . . . . . . . . . . . . Self-Inflicted Damage 257 | . 8 11 . . 45 . . 29 61 . . 103 . . Shots 7 | . . . . . 1 . . 1 1 . . 4 . . Rammed 13 | . 4 6 . . . . . . 2 . . . 1 . Targets Rammed 19 | . 4 6 . . . . . . 3 1 . 4 1 . Kicked 6 | . . . . . . . . . 1 1 . 4 . . Crushed . | . . . . . . . . . . . . . . . Highest Temperature 283 | 10 20 44 4 . 116 . . 18 274 . 69 283 244 248 Average Temperature 76 | 7 10 12 3 . 59 . . 10 68 . 34 109 76 88 Received Heat Transfer 2284 | . 69 165 369 9 . 12 . 151 647 . 72 600 118 72 Effects 5 | . . . . . . . . . . . . 5 . . Interference 5 | . . . . . . . . . . . . 5 . . Siege Activations . | . . . . . . . . . . . . . . . Robots Corrupted . | . . . . . . . . . . . . . . . Combat Hostiles . | . . . . . . . . . . . . . . . Parts Fried 1 | . . . . . . . . . . . . . 1 . Impact Corruptions 15 | . . . . . . . . . . . . 1 14 . Robots Melted . | . . . . . . . . . . . . . . . Combat Hostiles . | . . . . . . . . . . . . . . . Parts Melted 4 | . . . . . . . . . . . . 4 . . Heat Transferred 2050 | 25 75 100 . . . . . . . . 74 1702 . 74 Parts Sabotaged . | . . . . . . . . . . . . . . . Parts Stolen . | . . . . . . . . . . . . . . . Parts Stripped . | . . . . . . . . . . . . . . . Power Chain Reactions 1 | . . . . . . . . . . . . 1 . . Missiles Intercepted . | . . . . . . . . . . . . . . . Alert | -11 -10 -9 -8 -7 -7 -7 -7 -6 -6 -5 -5 -4 -3 -3 ------- Run | Scr Mat Mat Mat Fac Low Low Dat Pro Fac Fac DSF Fac Res Tes Peak Influence 830 | 5 38 117 216 88 . . . . 544 271 199 830 699 410 Initial 432 | . 3 15 49 88 . . . . 186 266 189 104 432 320 Average 319 | 1 19 72 149 88 . . . . 304 266 187 290 486 328 Maximum Alert Level 3 | . . . 1 . . . . . 2 1 . 3 2 2 Low Security (%) 24 | 100 100 100 95 100 . . . . 19 . 100 24 . . Level 1 37 | . . . 5 . . . . . 46 100 . 55 7 97 Level 2 37 | . . . . . . . . . 33 . . 17 92 2 Level 3 . | . . . . . . . . . . . . 2 . . Level 4 . | . . . . . . . . . . . . . . . Level 5 . | . . . . . . . . . . . . . . . High Security . | . . . . . . . . . . . . . . . Max Security . | . . . . . . . . . . . . . . . Squads Dispatched 26 | . 2 2 . . . . . 1 9 . . 7 4 1 Investigation 2 | . 1 . . . . . . . . . . 1 . . Extermination 6 | . . . . . . . . . 2 . . 2 2 . Reinforcement 12 | . 1 2 . . . . . . 3 . . 4 2 . Assault 3 | . . . . . . . . 1 1 . . . . 1 Garrison 3 | . . . . . . . . . 3 . . . . . Intercept . | . . . . . . . . . . . . . . . Searches Triggered . | . . . . . . . . . . . . . . . Data Miner Redirects 2 | . . . . . . . . . 1 . . . . 1 Construction Impeded 3 | . . . . . . . . . 1 . . 2 . . Haulers Reinforced 3 | . . . . . . . . . 2 . . . 1 . Active Scanning Responses . | . . . . . . . . . . . . . . . Cargo Convoy Interrupts . | . . . . . . . . . . . . . . . Stealth | -11 -10 -9 -8 -7 -7 -7 -7 -6 -6 -5 -5 -4 -3 -3 --------- Run | Scr Mat Mat Mat Fac Low Low Dat Pro Fac Fac DSF Fac Res Tes Distress Signals 13 | . . . 3 . . . . . 1 1 . 3 3 2 Communications Jammed 14 | . . . . . . . . 14 . . . . . . Distress Signals 14 | . . . . . . . . 14 . . . . . . Times Spotted 199 | . 8 10 17 3 4 5 . 30 31 1 2 34 37 17 Peak Tracking Total 14 | . 8 9 13 3 4 5 . 12 4 1 2 7 10 14 Tactical Retreats 22 | . . 1 1 . . . . 5 1 . 1 8 3 2 Traps | -11 -10 -9 -8 -7 -7 -7 -7 -6 -6 -5 -5 -4 -3 -3 ------- Run | Scr Mat Mat Mat Fac Low Low Dat Pro Fac Fac DSF Fac Res Tes Traps Triggered 7 | . 1 . . 1 . . . . 4 . . . 1 . Indirectly . | . . . . . . . . . . . . . . . Trap Hack Attempts . | . . . . . . . . . . . . . . . Triggered . | . . . . . . . . . . . . . . . Disarmed . | . . . . . . . . . . . . . . . Reprogrammed . | . . . . . . . . . . . . . . . Reused . | . . . . . . . . . . . . . . . Traps Extracted . | . . . . . . . . . . . . . . . Installed . | . . . . . . . . . . . . . . . Triggered . | . . . . . . . . . . . . . . . Machines | -11 -10 -9 -8 -7 -7 -7 -7 -6 -6 -5 -5 -4 -3 -3 ---------- Run | Scr Mat Mat Mat Fac Low Low Dat Pro Fac Fac DSF Fac Res Tes Machines Disabled 29 | . . . 1 . . . . . 9 . . 19 . . Max in Single Turn 6 | . . . 1 . . . . . 6 . . 6 . . Machines Sabotaged . | . . . . . . . . . . . . . . . Garrisons Compromised . | . . . . . . . . . . . . . . . Overloaded Fab Kills . | . . . . . . . . . . . . . . . Hacking | -11 -10 -9 -8 -7 -7 -7 -7 -6 -6 -5 -5 -4 -3 -3 --------- Run | Scr Mat Mat Mat Fac Low Low Dat Pro Fac Fac DSF Fac Res Tes Machines Accessed 19 | . 2 1 1 . . . 4 . 1 1 . 2 2 5 Terminals 13 | . 2 1 1 . . . . . 1 1 . 2 1 4 Fabricators 1 | . . . . . . . . . . . . . 1 . Repair Stations 1 | . . . . . . . . . . . . . . 1 Recycling Units . | . . . . . . . . . . . . . . . Scanalyzers . | . . . . . . . . . . . . . . . Garrison Access . | . . . . . . . . . . . . . . . Total Hacks 59 | . 4 2 3 . . . 29 . 2 2 . 3 3 11 Successful 40 | . 2 1 2 . . . 29 . . 1 . 1 1 3 Failed 19 | . 2 1 1 . . . . . 2 1 . 2 2 8 Catastrophic 7 | . . . 1 . . . . . . . . 2 1 3 Database Lockouts . | . . . . . . . . . . . . . . . Manual 13 | . 4 2 3 . . . . . . . . 1 . 3 Terminals 28 | . 4 2 3 . . . . . 2 2 . 3 2 10 Fabricators 1 | . . . . . . . . . . . . . 1 . Repair Stations 1 | . . . . . . . . . . . . . . 1 Recycling Units . | . . . . . . . . . . . . . . . Scanalyzers . | . . . . . . . . . . . . . . . Garrison Access . | . . . . . . . . . . . . . . . Terminal Hacks 36 | . 1 . 1 . . . 29 . . 1 . 1 1 2 Record 11 | . . . . . . . 11 . . . . . . . Part Schematic 9 | . . . . . . . 9 . . . . . . . Robot Schematic 6 | . . . . . . . 6 . . . . . . . Prototype ID Bank 3 | . . . . . . . 3 . . . . . . . Open Door 1 | . . . . . . . . . . . . . . 1 Open DSF 2 | . . . . . . . . . . 1 . . 1 . Level Access Points 1 | . 1 . . . . . . . . . . . . . Zone Layout 3 | . . . 1 . . . . . . . . 1 . 1 Fabricator Hacks . | . . . . . . . . . . . . . . . Repair Station Hacks 1 | . . . . . . . . . . . . . . 1 Refit 1 | . . . . . . . . . . . . . . 1 Recycling Unit Hacks . | . . . . . . . . . . . . . . . Scanalyzer . | . . . . . . . . . . . . . . . Garrison Access Hacks . | . . . . . . . . . . . . . . . Unauthorized Hacks 3 | . 1 1 1 . . . . . . . . . . . Terminals 3 | . 1 1 1 . . . . . . . . . . . Botnet 3 | . 1 1 1 . . . . . . . . . . . Fabricators . | . . . . . . . . . . . . . . . Repair Stations . | . . . . . . . . . . . . . . . Recycling Units . | . . . . . . . . . . . . . . . Scanalyzers . | . . . . . . . . . . . . . . . Garrison Access . | . . . . . . . . . . . . . . . Data Cores Recovered . | . . . . . . . . . . . . . . . Used . | . . . . . . . . . . . . . . . Hacking Detections 12 | . 2 1 1 . . . . . 1 . . 2 2 3 Full Trace Events 1 | . . . . . . . . . . . . 1 . . Feedback Events . | . . . . . . . . . . . . . . . Feedback Blocked . | . . . . . . . . . . . . . . . Robot Schematics Acquired 6 | . . . . . . . 6 . . . . . . . Robots Built . | . . . . . . . . . . . . . . . Authchips . | . . . . . . . . . . . . . . . Time . | . . . . . . . . . . . . . . . Total Robot Build Rating . | . . . . . . . . . . . . . . . Part Schematics Acquired 9 | . . . . . . . 9 . . . . . . . Parts Built . | . . . . . . . . . . . . . . . Authchips . | . . . . . . . . . . . . . . . Time . | . . . . . . . . . . . . . . . Total Part Build Rating . | . . . . . . . . . . . . . . . Parts Repaired . | . . . . . . . . . . . . . . . Time . | . . . . . . . . . . . . . . . Parts Recycled . | . . . . . . . . . . . . . . . Recycled Matter . | . . . . . . . . . . . . . . . Retrieved Matter . | . . . . . . . . . . . . . . . Retrieved Components . | . . . . . . . . . . . . . . . Parts Scanalyzed . | . . . . . . . . . . . . . . . Part Schematics Acquired . | . . . . . . . . . . . . . . . Parts Damaged . | . . . . . . . . . . . . . . . Bothacking | -11 -10 -9 -8 -7 -7 -7 -7 -6 -6 -5 -5 -4 -3 -3 ------------ Run | Scr Mat Mat Mat Fac Low Low Dat Pro Fac Fac DSF Fac Res Tes Used RIF Installer . | . . . . . . . . . . . . . . . Robots Hacked . | . . . . . . . . . . . . . . . Non-combat . | . . . . . . . . . . . . . . . Combat . | . . . . . . . . . . . . . . . Robot Hacks Applied . | . . . . . . . . . . . . . . . Relay Couplers Released . | . . . . . . . . . . . . . . . Fabnet Peak Effective % . | . . . . . . . . . . . . . . . Robots Rewired . | . . . . . . . . . . . . . . . Allies Hacked . | . . . . . . . . . . . . . . . Hacks Repelled . | . . . . . . . . . . . . . . . Allies | -11 -10 -9 -8 -7 -7 -7 -7 -6 -6 -5 -5 -4 -3 -3 -------- Run | Scr Mat Mat Mat Fac Low Low Dat Pro Fac Fac DSF Fac Res Tes Total Allies 1 | . . . . . . . . 1 . . . . . . Largest Group 1 | . . . . . . . . 1 . . . . . . Highest-Rated Group 96 | . . . . . . . . 96 . . . . . . Highest-Rated Ally 96 | . . . . . . . . 96 . . . . . . Total Orders . | . . . . . . . . . . . . . . . Ally Attacks 5 | . . . . . . . . 5 . . . . . . Total Damage 343 | . . . . . . . . 343 . . . . . . Kills . | . . . . . . . . . . . . . . . Allies Corrupted . | . . . . . . . . . . . . . . . Allies Melted . | . . . . . . . . . . . . . . . Intel | -11 -10 -9 -8 -7 -7 -7 -7 -6 -6 -5 -5 -4 -3 -3 ------- Run | Scr Mat Mat Mat Fac Low Low Dat Pro Fac Fac DSF Fac Res Tes Robot Analysis Total . | . . . . . . . . . . . . . . . Derelict Logs Recovered 3 | . . . . . 1 2 . . . . . . . . Drone Launches . | . . . . . . . . . . . . . . . Drone Recoveries . | . . . . . . . . . . . . . . . Exploration | -11 -10 -9 -8 -7 -7 -7 -7 -6 -6 -5 -5 -4 -3 -3 ------------- Run | Scr Mat Mat Mat Fac Low Low Dat Pro Fac Fac DSF Fac Res Tes Turns Passed 4397 | 34 74 95 120 65 141 98 27 140 1331 77 52 1082 914 147 Spaces Moved 4115 | 41 117 137 196 160 367 237 84 303 918 64 38 546 591 316 Core 544 | 41 117 137 42 . . . . 49 129 . . . 11 18 Treads . | . . . . . . . . . . . . . . . Legs 1763 | . . . . . . . . . 643 64 38 546 472 . Wheels . | . . . . . . . . . . . . . . . Hover 98 | . . . 38 . . . . . 60 . . . . . Flight 1710 | . . . 116 160 367 237 84 254 86 . . . 108 298 Fastest Speed 22 | 50 50 50 40 37 32 32 32 28 29 115 114 114 22 22 Average Speed 74 | 50 50 50 44 38 32 32 32 34 102 115 114 129 102 24 Slowest Speed 250 | 50 50 50 80 40 37 37 32 115 190 115 115 190 250 102 Overloaded Moves . | . . . . . . . . . . . . . . . Propulsion Burnouts . | . . . . . . . . . . . . . . . Robots Hopped 15 | . . . 4 4 1 . . . 2 . . . 1 3 Cave-ins Triggered . | . . . . . . . . . . . . . . . Exploration Rate (%) 30 | 3 27 24 33 5 53 46 69 57 16 3 42 16 15 41 Regions Visited 14 Branch Regions 5 Pre-discovered Areas 2 | . . . . . . 1 1 . . . . . . . Known Exits Taken 4 | . 1 . . . . . . . 1 1 . . 1 . Unknown Exits Taken 9 | 1 . 1 1 1 1 1 1 1 . . . 1 . . Scrap Searched 5 | . . . . . 3 1 . 1 . . . . . . Spaces Dug 11 | . . . . . . . . . 1 . . 3 7 . Terrain Destroyed 254 | . . . 10 . 48 12 . 63 37 . 2 75 7 . Melee 11 | . . . . . . . . . 1 . . 3 7 . Projectile 26 | . . . . . . . . . 1 . 2 23 . . AOE 217 | . . . 10 . 48 12 . 63 35 . . 49 . . Terrain Rammed . | . . . . . . . . . . . . . . . Walls Destroyed . | . . . . . . . . . . . . . . . Machines Disabled . | . . . . . . . . . . . . . . . Actions | -11 -10 -9 -8 -7 -7 -7 -7 -6 -6 -5 -5 -4 -3 -3 --------- Run | Scr Mat Mat Mat Fac Low Low Dat Pro Fac Fac DSF Fac Res Tes Total 4868 | 50 125 151 219 158 380 246 83 326 1113 67 40 754 774 382 Wait 79 | . . . 5 . . . . . 23 . . 7 40 4 Move 4074 | 40 117 136 188 151 364 236 83 302 913 63 37 545 589 310 Hop 14 | . . . 3 4 1 . . . 2 . . . 1 3 Pick Up 36 | 4 1 1 2 1 2 . . . 4 . . 10 10 1 Fast Attach 99 | 4 . 2 9 1 5 2 . 4 23 1 . 25 21 2 Attach 30 | 1 . . 2 1 1 1 . 4 1 1 . 6 8 4 Detach 25 | . . . . . . 1 . 4 1 1 . 7 8 3 Swap 64 | . . . 2 . . . . . 21 . . 34 7 . Drop 81 | . . . 7 . 2 . . 2 25 . . 31 13 1 Fire 181 | 1 4 6 1 . 5 1 . 8 81 . 3 67 2 2 Melee 116 | . . . . . . 5 . 2 16 . . 18 75 . Ram 11 | . 3 6 . . . . . . 2 . . . . . Kick 6 | . . . . . . . . . 1 1 . 4 . . Crush . | . . . . . . . . . . . . . . . Escape Stasis 52 | . . . . . . . . . . . . . . 52 Rewire . | . . . . . . . . . . . . . . . Trap . | . . . . . . . . . . . . . . . Miscellaneous . | . . . . . . . . . . . . . . . Route ------- -11/Scrapyard -10/Materials (discovered 3 exits: *Mat x3) -9/Materials -8/Materials -7/Factory -7/Lower Caves -7/Lower Caves -7/Data Miner -6/Proximity Caves -6/Factory (discovered 3 exits: *Fac / Low / *Ext) -5/Factory -5/DSF -4/Factory -3/Research -3/Testing (discovered 1 exit: [*Res]) History --------- Turn | Location | Event 12 | -11/Scrapyard | Discovered new exit (range 16) 35 | -11/Scrapyard | Entered Materials 49 | -10/Materials | Identified exit to Materials 109 | -10/Materials | Entered another Materials area 109 | -9/Materials | Evolved 2 slots: Propulsion x2 200 | -9/Materials | Discovered new exit (range 8) 204 | -9/Materials | Entered another Materials area 204 | -8/Materials | Evolved 2 slots: Utility x2 279 | -8/Materials | Lost 4 parts (1n1u2w) 314 | -8/Materials | Discovered new exit (range 16) 324 | -8/Materials | Entered Factory 324 | -7/Factory | Evolved 2 slots: Propulsion x2 344 | -7/Factory | Build established: Mutant 347 | -7/Factory | Lost 3 parts (3n) 386 | -7/Factory | Discovered new exit (range 9) 389 | -7/Factory | Entered Lower Caves 464 | -7/Lower Caves | Learned 8 Factory zone layouts 527 | -7/Lower Caves | Discovered new exit (range 9) 530 | -7/Lower Caves | Entered another Lower Caves area 569 | -7/Lower Caves | Learned Factory garrison access intel 577 | -7/Lower Caves | Spotted B-75 Beast 607 | -7/Lower Caves | Discovered new exit (range 8) 628 | -7/Lower Caves | Entered Data Miner 628 | -7/Data Miner | Discovered new exit (range 6) 635 | -7/Data Miner | Met Data Miner 642 | -7/Data Miner | Lost 3 parts (1p2n) 642 | -7/Data Miner | Learned location of Section 7 (-2) 642 | -7/Data Miner | Acquired the access code to Warlord's prototype stash 647 | -7/Data Miner | Received God Mode back door access code from Data Miner 655 | -7/Data Miner | Entered Proximity Caves 698 | -6/Proximity Caves | Attracted the attention of an 0b10 outpost 776 | -6/Proximity Caves | Core integrity fell below 50% 790 | -6/Proximity Caves | Discovered new exit (range 14) 795 | -6/Proximity Caves | Entered Factory 795 | -6/Factory | Evolved 2 slots: Power x1, Utility x1 796 | -6/Factory | Identified exit to Lower Caves 796 | -6/Factory | Identified exit to Extension 796 | -6/Factory | Identified exit to Factory 797 | -6/Factory | Loaded intel: 4 garrison access locations 805 | -6/Factory | Lost 6 parts (5n1w) 939 | -6/Factory | System corruption reached 10% 1386 | -6/Factory | Build established: Scavenger-Mutant 1403 | -6/Factory | Garrison activated, responded to threat 1845 | -6/Factory | First assault squad dispatched 1865 | -6/Factory | Incoming assault squad redirected 1887 | -6/Factory | Spotted B-75 Beast 2126 | -6/Factory | Entered another Factory area 2126 | -5/Factory | Evolved 2 slots: Utility x1, Weapon x1 2197 | -5/Factory | Identified exit to DSF 2200 | -5/Factory | Spotted B-75 Beast 2203 | -5/Factory | Entered DSF 2224 | -5/DSF | Discovered new exit (range 13) 2232 | -5/DSF | Additional patrols routed to DSF 2255 | -5/DSF | Entered Factory 2255 | -4/Factory | Evolved 2 slots: Utility x2 2491 | -4/Factory | Build established: Scavenger-Tank 2580 | -4/Factory | Found Prototype Device 2580 | -4/Factory | Identified Exp. ECM Suite 3058 | -4/Factory | Lost 4 parts (1p1n2u) 3258 | -4/Factory | Discovered new exit (range 19) 3322 | -4/Factory | Build established: Scavenger-Mutant 3337 | -4/Factory | Entered Research 3337 | -3/Research | Evolved 2 slots: Power x1, Propulsion x1 3354 | -3/Research | Identified exit to DSF 3681 | -3/Research | Build established: Generator-Mutant 3754 | -3/Research | Found Prototype Processor 3754 | -3/Research | Identified Spectral Analyzer 3841 | -3/Research | Found Prototype Processor 3841 | -3/Research | Identified Exp. Signal Interpreter 3845 | -3/Research | Found Exp. Signal Interpreter 4083 | -3/Research | Lost 3 parts (2n1u) 4098 | -3/Research | System corruption reached 10% 4202 | -3/Research | Lost 12 parts (1p5n4u2w) 4241 | -3/Research | Core integrity fell below 50% 4248 | -3/Research | Discovered new exit (range 8) 4250 | -3/Research | Identified exit to Testing 4251 | -3/Research | Entered Testing 4253 | -3/Testing | Protovariant out of control (PD-BCR4UKHVK8) 4272 | -3/Testing | Incoming assault squad redirected 4293 | -3/Testing | Discovered new exit (range 11) 4294 | -3/Testing | Spotted Investigator 4294 | -3/Testing | Scanned by Researcher 4374 | -3/Testing | System corruption reached 30% 4377 | -3/Testing | Core integrity fell below 20% 4398 | -3/Testing | Destroyed by P-80 Master with Gamma Rifle Last Messages --------------- 04375_ Investigator is analyzing... 04376_ Penetrated by Slug. 04378_ P-80 Master resets B-74 Champion, system corruption cleaned. 04378_ Adv. Heat Sink destroyed. 04379_ Chain reaction triggered in Lgt. Quantum Reactor. 04379_ G-73 Enforcer destroyed. 04379_ K-01 Serf destroyed. 04379_ P-80 Master resets Investigator, system corruption cleaned. 04379_ Held in stasis. 04379_ Investigator is analyzing... 04380_ Backup Laser III destroyed. 04387_ Held in stasis. 04387_ Investigator is analyzing... 04389_ System corrupted: Component data lost. 04389_ System Shield destroyed. 04390_ Held in stasis. 04395_ Slug penetrates B-74 Champion. 04395_ Held in stasis. 04398_ Penetrated by Slug. 04398_ L-61 Swordsman destroyed. Map ----- +----------------------------------------------------+ | ?????????????????????????????????????????????????? | | ?????????????????????????????????????????????????? | | ?????????????????????????????????????????????????? | | ?????????????????????????????????????????????????? | | ?????????????????????????????????????????????????? | | ?????????????????????????????????????????????????? | | ?????????????????????????????????????????????????? | | ?????????????????????????????????????????????????? | | ?????????????????????????????????????????????????? | | ?????????????????????????????????????????????????? | | ?????????????????????????????????????????????????? | | ???????????????????????????? ???????????????????? | | ??????????????????????????? #??????????????????? | | ??????????????????????????? #??????????????????? | | ??????????????????????????? k#??????????????????? | | ??????????????????????????? #??????????????????? | | ??????????????????????????? #??????????????????? | | ?????????????????????????? #??????????????????? | | ?????????????????????????? #??????????????????? | | ?????????????????????????? #??????????????????? | | ?????????????????????????? #??????????????????? | | ?????????????????????????? #??????????????????? | | ????#####+#########+###### ########???????????? | | ????# u k +???????????? | | ????# p c = c #???????????? | | ????# *% @ +???????????? | | ????# h b #???????????? | | ????# ######################### #???????????? | | ????# #???????????????????????????????????????? | | ????# #???????????????????????? ?????????????? | | ????# #???????????????????????? ?#???????????? | | ????# #?#"""##????????????????? #???????????? | | ????# "??T "#????????????????? #???????????? | | ????" %! "?## #????????????????# #???????????? | | ???#" =! "## #????????????????# #??####?????? | | ???#" % T#???###??????????# ### ??????? | | ???#" = #???# ##+######## # ??????? | | ???#" "#######???? # ??#???? | | ???## "???????????? ????? | | ????# #?????????????# ?????? | | ????# #?????????????# """"" """"" #??????? | | ????# #?????????????# """"" """"" #??????? | | ????# #?????????????# """"" """"" #??????? | | ##### ############### #??????? | | +??????? | | !!! ############+#### #??????? | | !!* #????????#| ] # #??????? | | * #????????# + #????#?? | | ################### #????????# """ ## #??? #?? | | ?????# ?# #????????# """ ## ####/### | +----------------------------------------------------+ Best States ------------- Heat Dissipation 115 Energy Generation 63 Energy Capacity 820 Matter Stores 300 Matter Capacity 300 Sight Range 23 Robot Scan Range 18 Terrain Scan Range 24 Terrain Scan Density 285 Jamming Range 12 Cloak Strength 3 Armor Coverage 600 Melee Speed Boost 30 Phase Shifting 10 Evasion (%) 65 Targeting Accuracy 6 Target Analysis 5 Armor Integrity Analysis 30 Recoil Reduction 2 Offensive Hacking 12 Defensive Hacking 24 Item Schematics ----------------- Combat Drone Bay | -7/Data Miner | Free Lgt. Regenerative Plating | -7/Data Miner | Free Cld. Aerolev Unit | -7/Data Miner | Free Exp. Propulsion Shielding | -7/Data Miner | Free Imp. Heavy Machine Gun | -7/Data Miner | Free Nuclear Pulse Array | -7/Data Miner | Free Adv. Shield Generator | -7/Data Miner | Free Disruptor Cannon | -7/Data Miner | Free Adv. Coolant Injector | -7/Data Miner | Free Robot Schematics ------------------ O-24 Administrator | -7/Data Miner | Free C-17 Slicer | -7/Data Miner | Free E-15 Imp | -7/Data Miner | Free A-15 Conveyor | -7/Data Miner | Free G-50 Soldier | -7/Data Miner | Free B-60 Warrior | -7/Data Miner | Free Fabricated ------------ Nothing Alien Tech Used ----------------- None Achievements -------------- None Challenges ------------ None Game ------ Seed HardcellVortexGuard Manual? 0 Play Time 01:00:21 Cumulative 473.5 hours Start 2022.08.31 @ 11:12:55 End 2022.08.31 @ 13:18:28 Sessions 1 Manual Loads 0 Difficulty Rogue Special Mode None Game No. 536 Rogue 535 Adventurer 0 Explorer 1 Win Type - Total 15 Types 10/0/2/3/0/0/0/0/0 Lore% 80 Gallery% 88 Achievement% 70 Wizard Run 0 Options --------- ASCII 0 Keyboard 1 Movement Vi Keybinds 0 Fullscreen 1 Font 18/SmallcapsGlow Map View 76x50 Tactical HUD 1 Map Filters NONE Filters NONE Steam 1 RUN: 38000340-1a63-4933-9e6a-6b48168894a0